Cogmind - Beta 15 @@@ ROGUE MODE // 2025.05.09 @ 18:26:12 Player: cd4337 Result: Destroyed by S-10 Pest with Light Assault Rifle Performance ------------- Evolutions (1) 500 Regions Visited (2) 400 Robots Destroyed (44) 220 Value Destroyed (900) 900 Prototype IDs (0) 0 Alien Tech Used (0) 0 Bonus (0) 0 TOTAL SCORE: 2020 Bonus ------- None Cogmind --------- Core Integrity 0/400 Matter 300/300 Energy 100/100 System Corruption 0% Temperature Cool (6) Movement Core (100) Ox1 Location -9/Materials Parts ------- > --- POWER (2) -------- (None) > --- PROPULSION (2) --- (None) > --- UTILITY (3) ------ Small Storage Unit Targeting Computer > --- WEAPON (2) ------- (None) > --- INVENTORY (8) ---- Ion Engine Signal Interpreter Peak State ------------ > --- POWER ------------ Reinforced Ion Engine > --- PROPULSION ------- Improved Aluminum Leg Improved Aluminum Leg > --- UTILITY ---------- Small Storage Unit Targeting Computer Hacking Suite > --- WEAPON ----------- Small Laser Beam Rifle > --- INVENTORY -------- Ion Engine Ion Engine Improved Aluminum Leg Signal Interpreter Grenade Launcher [Rating: 14] Favorites ----------- Power Ion Engine Engine Ion Engine Propulsion Aluminum Leg Leg Aluminum Leg Utility Small Storage Unit Storage Small Storage Unit Processor Targeting Computer Hackware Hacking Suite Weapon Light Assault Rifle Energy Gun Small Laser Ballistic Gun Light Assault Rifle Launcher Grenade Launcher Build | -11 -10 -9 ------- Run | Yrd Mat Mat Slots Evolved 2 | . . 2 Power 1 | . . 1 Propulsion . | . . . Utility 1 | . . 1 Weapon . | . . . Parts Attached 20 | 6 4 10 Power 4 | 1 1 2 Engine 4 | 1 1 2 Core . | . . . Reactor . | . . . Propulsion 7 | 2 1 4 Treads . | . . . Leg 7 | 2 1 4 Wheel . | . . . Hover . | . . . Flight . | . . . Utility 3 | 1 1 1 Device . | . . . Storage 1 | 1 . . Processor 1 | . 1 . Hackware 1 | . . 1 Protection . | . . . Artifact . | . . . Weapon 6 | 2 1 3 Energy Gun 2 | 1 . 1 Energy Cannon . | . . . Ballistic Gun 3 | 1 . 2 Ballistic Cannon . | . . . Launcher 1 | . 1 . Special Weapon . | . . . Impact Weapon . | . . . Slashing Weapon . | . . . Piercing Weapon . | . . . Special Melee Weapon . | . . . Unidentified Prototypes . | . . . Parts Lost 11 | . . 11 Power 2 | . . 2 Propulsion 3 | . . 3 Utility . | . . . Weapon 6 | . . 6 Highest Loss Streak 4 | . . 4 To Critical Strikes . | . . . Average Backups 5 | 1 5 5 Power 1 | . 1 1 Propulsion . | . . . Utility 1 | . 1 1 Weapon 1 | . 1 1 Tool/Special . | . . . Unused Backups 1 | . . 1 Power . | . . . Propulsion . | . . . Utility 1 | . . 1 Weapon . | . . . Tool/Special . | . . . Average Slot Usage (%) 80 | . 87 73 Engine 12 | . 14 10 Leg 21 | . 28 15 Storage 12 | . 14 11 Processor 6 | . 2 11 Hackware 3 | . . 7 Energy Gun 4 | . 5 4 Ballistic Gun 13 | . 14 12 Launcher 5 | . 8 1 Peak Build Rating 14 | 6 7 14 Average Rating 7 | 4 6 10 On Entrance 4 | . 6 7 Naked Turns . | . . . Heaviest Build 19 | 12 14 19 Greatest Support 26 | 20 20 26 Greatest Overweight (x) 5 | . . 5 Average Overweight (x) . | . . . Largest Inventory Capacity 8 | 8 8 8 Average Capacity 7 | 7 8 8 Most Carried 8 | 5 8 8 Average Carried 5 | 1 5 5 Final Capacity 8 | 8 8 8 Final Carried 7 | 1 7 2 Class Distribution -------------------- 100% | Mutant Dominant Class ---------------- Mutant | -10/Materials Mutant | -9/Materials Resources | -11 -10 -9 ----------- Run | Yrd Mat Mat Matter Collected 838 | 146 175 517 Remotely . | . . . Salvage Created 971 | . 271 700 Parts 78 | . 36 42 Haulers Intercepted . | . . . Recyclers Shooed 2 | . 2 . Parts Field Recycled . | . . . Retrieved Matter . | . . . Parts Self-Destructed . | . . . Prevented . | . . . Kills | -11 -10 -9 ------- Run | Yrd Mat Mat Combat Hostiles Destroyed 32 | . 12 20 Guns 23 | . 5 18 AOE 9 | . 7 2 Classes Destroyed 9 | . 7 2 Worker 1 | . 1 . Builder 4 | . 3 1 Recycler 2 | . 1 1 Operator 1 | . 1 . Watcher 4 | . 3 1 Swarmer 15 | . 9 6 Grunt 15 | . 3 12 Brawler 1 | . . 1 Sentry 1 | . . 1 Best Kill Streak 11 | . 6 11 Combat Bots Only 6 | . 4 6 Max Kills in Single Turn 2 | . 2 2 Gunslinging . | . . . Exploded 2 | . 2 1 Melee . | . . . Uniques/NPCs Destroyed . | . . . Combat | -11 -10 -9 -------- Run | Yrd Mat Mat Hostile Shots Fired 236 | . 63 173 Missed 72 | . 26 46 Hits 164 | . 37 127 Melee 1 | . . 1 Projectile 163 | . 37 126 Critical Strikes 4 | . 1 3 Damage Taken 1964 | . 401 1563 Core 509 | . 105 404 Absorbed by Shields . | . . . Regen/Repaired (Parts) 63 | . . 63 Core Remaining (%) 79 | 100 58 . Volleys Fired 128 | . 60 68 Largest 2 | . 2 2 Hottest 96 | . 60 96 Shots Fired 203 | . 89 114 Gun 181 | . 75 106 Cannon . | . . . Launcher 22 | . 14 8 Special . | . . . Kinetic 131 | . 60 71 Thermal 50 | . 15 35 Explosive 22 | . 14 8 Electromagnetic . | . . . Robot Hit Streak 16 | . 7 16 Robot Miss Streak 7 | . 7 7 Penetration Max . | . . . Secondary Targets 9 | . . 9 Max Gunslinging Chain 1 | . . 1 Shots Hit Robots 114 | . 40 74 Core Hits 70 | . 31 39 Critical Kills . | . . . Critical Parts Destroyed 1 | . . 1 Critical Strikes 1 | . . 1 Destroy 1 | . . 1 Melee Attacks . | . . . Impact . | . . . Slashing . | . . . Piercing . | . . . Sneak Attacks . | . . . Combat Hostiles . | . . . Follow-up Attacks . | . . . Damage Inflicted 2315 | . 1086 1229 Guns 1160 | . 310 850 Cannons . | . . . Explosions 1155 | . 776 379 Melee . | . . . Ramming . | . . . Kinetic 737 | . 221 516 Thermal 423 | . 89 334 Explosive 1155 | . 776 379 Electromagnetic . | . . . Impact . | . . . Slashing . | . . . Piercing . | . . . Highest Corruption . | . . . Average Corruption . | . . . Corruption Purged . | . . . Corruption Blocked . | . . . Overload Shots . | . . . Overflow Damage 71 | . 70 1 Projectiles . | . . . Explosions 71 | . 70 1 Melee . | . . . Knockbacks . | . . . Impact . | . . . Kinetic . | . . . Secondary . | . . . Self-Inflicted Damage 197 | . 94 103 Shots 8 | . 3 5 Rammed . | . . . Targets Rammed . | . . . Kicked . | . . . Crushed . | . . . Highest Temperature 334 | . 60 334 Average Temperature 91 | . 17 127 Received Heat Transfer 738 | . 60 678 Effects 3 | . . 3 Shutdowns 1 | . . 1 Interference 2 | . . 2 Siege Activations . | . . . Martial Activations . | . . . Shielding Activations . | . . . Robots Disrupted . | . . . Combat Hostiles . | . . . Robots Corrupted . | . . . Combat Hostiles . | . . . Parts Fried . | . . . Impact Corruptions . | . . . Robots Melted . | . . . Combat Hostiles . | . . . Parts Melted 2 | . . 2 Heat Transferred 1005 | . 200 805 Parts Sabotaged . | . . . Parts Stolen . | . . . Parts Stripped . | . . . Power Chain Reactions . | . . . Alert | -11 -10 -9 ------- Run | Yrd Mat Mat Maximum Alert Level 1 | . 1 1 Low Security (%) 60 | 100 65 51 Level 1 39 | . 34 48 Level 2 . | . . . Level 3 . | . . . Level 4 . | . . . Level 5 . | . . . High Security . | . . . Max Security . | . . . Peak Influence 296 | . 273 296 Initial 104 | . . 104 Average 136 | . 116 170 Influence Increases 988 | . 447 541 Destroy 0b10 Robot/C 640 | . 240 400 Destroy 0b10 Robot/NC 60 | . 45 15 Destroy Leader 98 | . 46 52 Successful Hack 36 | . 22 14 Disable Machine 30 | . 15 15 Destroy Structure 109 | . 79 30 Lose Combat Pursuer 15 | . . 15 Influence Decreases 723 | . 198 525 Entered New Map 145 | . . 145 Time Decay 468 | . 198 270 Lost Part 110 | . . 110 Squads Dispatched 4 | . 3 1 Investigation 1 | . 1 . Extermination . | . . . Reinforcement 3 | . 2 1 Assault . | . . . Garrison . | . . . Intercept . | . . . Searches Triggered . | . . . Construction Impeded . | . . . Haulers Reinforced . | . . . Active Scanning Responses . | . . . Cargo Convoy Interrupts . | . . . Stealth | -11 -10 -9 --------- Run | Yrd Mat Mat Distress Signals 5 | . 2 3 Communications Jammed . | . . . Distress Signals . | . . . Times Spotted 46 | . 19 27 Peak Tracking Total 5 | . 5 5 Tactical Retreats 1 | . . 1 Traps | -11 -10 -9 ------- Run | Yrd Mat Mat Traps Triggered 2 | . 1 1 Indirectly . | . . . Trap Hack Attempts . | . . . Triggered . | . . . Disarmed . | . . . Reprogrammed . | . . . Reused . | . . . Traps Extracted . | . . . Installed . | . . . Triggered . | . . . Machines | -11 -10 -9 ---------- Run | Yrd Mat Mat Machines Disabled 2 | . 1 1 Max in Single Turn 1 | . 1 1 Machines Repaired . | . . . Machines Dismantled . | . . . Machines Sabotaged . | . . . Overloaded Fab Kills . | . . . Hacking | -11 -10 -9 --------- Run | Yrd Mat Mat Machines Accessed 5 | . 3 2 Terminals 4 | . 3 1 Fabricators . | . . . Repair Stations 1 | . . 1 Recycling Units . | . . . Scanalyzers . | . . . Garrison Access . | . . . Total Hacks 13 | . 6 7 Successful 9 | . 4 5 Failed 4 | . 2 2 Catastrophic . | . . . Database Lockouts . | . . . Manual . | . . . Terminals 11 | . 6 5 Fabricators . | . . . Repair Stations 2 | . . 2 Recycling Units . | . . . Scanalyzers . | . . . Garrison Access . | . . . Terminal Hacks 7 | . 4 3 Emergency Access Points 1 | . 1 . Alert Level 1 | . . 1 Locate Traps 1 | . 1 . Maintenance Status 1 | . 1 . Assault Status 1 | . . 1 Hauler Manifests 1 | . 1 . Zone Layout 1 | . . 1 Fabricator Hacks . | . . . Repair Station Hacks 2 | . . 2 Scan Component 1 | . . 1 Repair 1 | . . 1 Recycling Unit Hacks . | . . . Scanalyzer . | . . . Garrison Access Hacks . | . . . Unauthorized Hacks . | . . . Terminals . | . . . Fabricators . | . . . Repair Stations . | . . . Recycling Units . | . . . Scanalyzers . | . . . Garrison Access . | . . . Data Cores Recovered 1 | . 1 . Used 1 | . 1 . Hacking Detections 5 | . 3 2 Full Trace Events . | . . . Feedback Events . | . . . Feedback Blocked . | . . . Robot Schematics Acquired . | . . . Robots Built . | . . . Authchips . | . . . Time . | . . . Total Robot Build Rating . | . . . Part Schematics Acquired . | . . . Parts Built . | . . . Authchips . | . . . Time . | . . . Total Part Build Rating . | . . . Parts Repaired 1 | . . 1 Time 16 | . . 16 Parts Recycled . | . . . Recycled Matter . | . . . Retrieved Matter . | . . . Retrieved Components . | . . . Parts Scanalyzed . | . . . Part Schematics Acquired . | . . . Parts Damaged . | . . . Bothacking | -11 -10 -9 ------------ Run | Yrd Mat Mat Used RIF Installer . | . . . Robots Hacked . | . . . Non-combat . | . . . Combat . | . . . Robot Hacks Applied . | . . . Relay Couplers Released . | . . . Fabnet Peak Effective % . | . . . Robots Rewired . | . . . Allies Hacked . | . . . Hacks Repelled . | . . . Allies | -11 -10 -9 -------- Run | Yrd Mat Mat Total Allies . | . . . Largest Group . | . . . Highest-Rated Group . | . . . Highest-Rated Ally . | . . . Total Orders . | . . . Ally Attacks . | . . . Total Damage . | . . . Kills . | . . . Allies Corrupted . | . . . Allies Melted . | . . . Intel | -11 -10 -9 ------- Run | Yrd Mat Mat Active Infowar (turns) . | . . . Robot Analysis Total . | . . . Derelict Logs Recovered . | . . . Drone Launches . | . . . Drone Recoveries . | . . . Exploration | -11 -10 -9 ------------- Run | Yrd Mat Mat Turns Passed 1198 | 67 550 581 Spaces Moved 573 | 36 320 217 Core 29 | 21 . 8 Treads . | . . . Legs 544 | 15 320 209 Wheels . | . . . Hover . | . . . Flight . | . . . Fastest Speed 50 | 50 120 100 Average Speed 127 | 79 120 147 Slowest Speed 300 | 120 120 300 Overloaded Moves . | . . . Propulsion Burnouts . | . . . Robots Hopped . | . . . Potential Cave-ins . | . . . Cave-ins Triggered . | . . . Exploration Rate (%) 31 | 4 60 31 Regions Visited 2 Branch Regions . Pre-discovered Areas . | . . . Known Exits Taken . | . . . Unknown Exits Taken 2 | 1 1 . Scrap Searched . | . . . Spaces Dug . | . . . Terrain Destroyed 114 | . 83 31 Melee . | . . . Projectile . | . . . AOE 114 | . 83 31 Terrain Rammed . | . . . Walls Destroyed . | . . . Machines Disabled . | . . . Actions | -11 -10 -9 --------- Run | Yrd Mat Mat Total 853 | 74 407 372 Wait 107 | 27 17 63 Move 571 | 35 319 217 Hop . | . . . Pick Up 19 | 6 7 6 Fast Attach 1 | 1 . . Attach 16 | 5 1 10 Detach . | . . . Swap 8 | . 3 5 Drop 3 | . . 3 Fire 128 | . 60 68 Melee . | . . . Ram . | . . . Kick . | . . . Crush . | . . . Escape Stasis . | . . . Rewire . | . . . Trap . | . . . Miscellaneous . | . . . Route ------- -11/Scrapyard -10/Materials (discovered 3 exits: *Mat x2 / [*Min]) -9/Materials (discovered 1 exit: [Min]) History --------- Turn | Location | Event 3 | -11/Scrapyard | Discovered new exit (range 15) 68 | -11/Scrapyard | Entered Materials 202 | -10/Materials | Discovered new exit (range 11) 306 | -10/Materials | Build established: Mutant 438 | -10/Materials | Discovered new exit (range 3) 569 | -10/Materials | Discovered new exit (range 16) 618 | -10/Materials | Entered another Materials area 618 | -9/Materials | Evolved 2 slots: Power x1, Utility x1 798 | -9/Materials | Lost 3 parts (1p1n1w) 932 | -9/Materials | Core integrity fell below 50% 978 | -9/Materials | Lost 4 parts (2n2w) 987 | -9/Materials | Discovered new exit (range 19) 1050 | -9/Materials | Repaired Imp. Aluminum Leg 1162 | -9/Materials | Core integrity fell below 20% 1199 | -9/Materials | Destroyed by S-10 Pest with Light Assault Rifle Last Messages --------------- 01170_ U-05 Engineer lays Concrete. 01173_ W-16 Scout sends out distress signal. 01173_ U-05 Engineer builds a Wall. 01174_ The unstable cave ceiling collapses. 01174_ R-06 Scavenger collects Lgt. Ion Engine. 01174_ Matter Pump disabled. 01174_ U-05 Engineer destroyed. 01178_ R-06 Scavenger destroyed. 01180_ Grenade Launcher destroyed. 01184_ Acquired 42 matter. 01186_ Lgt. Assault Rifle destroyed. 01187_ The unstable cave ceiling collapses. 01190_ Triggered Blade Trap. 01190_ Massive razor-sharp blades shoot up from within the floor. 01190_ Hacking Suite severed. 01190_ Ion Engine severed. 01190_ Imp. Aluminum Leg severed. 01194_ U-05 Engineer lays Concrete. 01198_ The unstable cave ceiling collapses. Map ----- +----------------------------------------------------+ | ????????????????????? ## #%% | | ?????????????????????"" ## ########### | | ?????????????????????"" ## #????###### | | ?????????????????????"" "" ## #????#"" " | | ????????????????????? T" ## ##???# " " | | ????????????????????? "" ## """ ##### | | ????????????????????? ## """ | | ???????????????##########+### """ < | | ????????????? ???? | | ????????????? ##### ???? | | ????????????? # #????????? | | ???????????????#### ####### # #???????? | | ??????????????????#?????????# #! !#???????? | | ??????????????????????#?? ## ##!!!!##???????? | | ??????????????????????# # #??####????????? | | ??????????????????# ??# ""# #??????????????? | | ??????????????????# ?# T"# #??????????????? | | ??????????????????# ?# ""## #??????????????? | | ??????????????????# # # ##?????????????? | | ??????????????????# ###+# # #?????????????? | | ??????????????????# w ##?????????????? | | ??????????????????+ =* #######???????? | | ??????????????????# """ s %= ==#???????? | | ??????????????????# "Y" s" !=# ==#???????? | | ??????????????????# " " ^"""= # [ #???????? | | ??????????????????# @ ^ ! # #???????? | | ??????????????????# g [#? +???????? | | ??????????????????# """ """ #? #???????? | | ??????????????????# """ """ #??#####???????? | | ??????????????????# """ """ ?????????????? | | ??????????????????# ???????????? | | ??????????????????# ???????????? | | ??????????????????# ############+####??????????? | | ??????????????????# ???????????? ?????????????? | | ??????????????????k ????????????? ?????????????? | | ????????????????? ????????????? ?????????????? | | ???????????????? ? ??????????????? ?????????????? | | ????????????????#????????????????????????????????? | | ?????????????????????????????????????????????????? | | ?????????????????????????????????????????????????? | | ?????????????????????????????????????????????????? | | ?????????????????????????????????????????????????? | | ?????????????????????????????????????????????????? | | ?????????????????????????????????????????????????? | | ?????????????????????????????????????????????????? | | ?????????????????????????????????????????????????? | | ?????????????????????????????????????????????????? | | ?????????????????????????????????????????????????? | | ?????????????????????????????????????????????????? | | ?????????????????????????????????????????????????? | +----------------------------------------------------+ Best States ------------- Heat Dissipation 28 Energy Generation 12 Energy Capacity 265 Matter Stores 300 Matter Capacity 300 Sight Range 16 Terrain Scan Density 10 Evasion (%) 55 Targeting Accuracy 5 Offensive Hacking 10 Item Schematics ----------------- None Robot Schematics ------------------ None Fabricated ------------ Nothing Repaired ---------- Imp. Aluminum Leg | 37% | -9/Materials Alien Tech Used ----------------- None Achievements -------------- None Challenges ------------ None Game ------ Seed OmegaBottomlessRailcannon Manual? 0 Play Time 00:23:03 Cumulative 9.5 hours Start 2025.05.09 @ 18:05:06 End 2025.05.09 @ 18:26:12 Sessions 1 Manual Loads 0 Difficulty Rogue Special Mode None Game No. 26 Rogue 26 Adventurer 0 Explorer 0 Win Type - Total 0 Types 0/0/0/0/0/0/0/0/0/0 Lore% 8 Gallery% 10 Achievement% 12 Wizard Run 0 Options --------- Layout 1 ASCII 0 Keyboard 0 Movement Mouse Keybinds 0 Fullscreen 1 Font 32/SmallcapsGlow Map View 50x35 Zoom Use 0% Tactical HUD 1 Map Filters NONE Filters NONE Steam 1 RUN: 39f77542-9eb3-4832-9a9c-612f7a9aad2c